[Event "*** SCC Grand Prix: Titled Tuesday Blitz"]
[Site "Chess.com"]
[Date "2020.06.02"]
[Round "6"]
[White "temus_galaktionov"]
[Black "FabianoCaruana"]
[Result "0-1"]
[WhiteElo "2726"]
[BlackElo "3009"]
[TimeControl "180+1"]
[EndTime "11:09:47 PDT"]
[Termination "FabianoCaruana won by resignation"]

1. d4 {[%clk 0:03:00.9]} 1... Nf6 {[%clk 0:02:59.3]} 2. Nf3 {[%clk 0:03:00]}
2... d6 {[%clk 0:02:59.4]} 3. c4 {[%clk 0:02:58.5]} 3... g6 {[%clk 0:02:59.8]}
4. Nc3 {[%clk 0:02:58.3]} 4... Bf5 {[%clk 0:03:00.4]} 5. h3 {[%clk 0:02:56.6]}
5... Ne4 {[%clk 0:02:59.3]} 6. Qb3 {[%clk 0:02:47.2]} 6... Nxc3 {[%clk
0:02:57.7]} 7. Qxc3 {[%clk 0:02:48.1]} 7... Bg7 {[%clk 0:02:57.2]} 8. g4 {[%clk
0:02:48.7]} 8... Be4 {[%clk 0:02:56.4]} 9. Bg2 {[%clk 0:02:49.2]} 9... c5 {[%clk
0:02:54.1]} 10. Qe3 {[%clk 0:02:44.5]} 10... Bxf3 {[%clk 0:02:50]} 11. Qxf3
{[%clk 0:02:45.4]} 11... Nc6 {[%clk 0:02:45.7]} 12. dxc5 {[%clk 0:02:36.3]}
12... Qa5+ {[%clk 0:02:44.4]} 13. Bd2 {[%clk 0:02:15.7]} 13... Qxc5 {[%clk
0:02:43.1]} 14. Bc3 {[%clk 0:02:16]} 14... O-O {[%clk 0:02:32]} 15. Bxg7 {[%clk
0:02:12.5]} 15... Kxg7 {[%clk 0:02:32.9]} 16. Qc3+ {[%clk 0:02:12.8]} 16... Qd4
{[%clk 0:02:24.8]} 17. Qxd4+ {[%clk 0:02:08.9]} 17... Nxd4 {[%clk 0:02:25.7]}
18. Kd2 {[%clk 0:02:09.2]} 18... Rac8 {[%clk 0:02:21.6]} 19. b3 {[%clk
0:02:08.6]} 19... b6 {[%clk 0:02:20.4]} 20. e3 {[%clk 0:02:07.8]} 20... Ne6
{[%clk 0:02:19.3]} 21. Bd5 {[%clk 0:02:06.1]} 21... Nc5 {[%clk 0:02:16.9]} 22.
Rac1 {[%clk 0:02:02.5]} 22... e6 {[%clk 0:02:13]} 23. Bg2 {[%clk 0:02:01.1]}
23... Kf6 {[%clk 0:02:12.9]} 24. h4 {[%clk 0:01:59]} 24... Ke7 {[%clk
0:02:07.3]} 25. f4 {[%clk 0:01:55.3]} 25... Rg8 {[%clk 0:01:56.5]} 26. Bf3
{[%clk 0:01:54]} 26... Nd7 {[%clk 0:01:55]} 27. h5 {[%clk 0:01:52.8]} 27... g5
{[%clk 0:01:54.9]} 28. Ke2 {[%clk 0:01:41.9]} 28... h6 {[%clk 0:01:54.1]} 29.
Rhd1 {[%clk 0:01:31.1]} 29... Nf6 {[%clk 0:01:53.1]} 30. Rg1 {[%clk 0:01:29.5]}
30... Rc5 {[%clk 0:01:47.6]} 31. Kd3 {[%clk 0:01:18.2]} 31... Rc7 {[%clk
0:01:34.8]} 32. Kd2 {[%clk 0:01:10.7]} 32... a5 {[%clk 0:01:32.6]} 33. Rc2
{[%clk 0:01:02.7]} 33... Rc5 {[%clk 0:01:27]} 34. Rcc1 {[%clk 0:01:01.4]} 34...
Rc7 {[%clk 0:01:25.6]} 35. Rc2 {[%clk 0:01:01.3]} 35... gxf4 {[%clk 0:01:24.9]}
36. exf4 {[%clk 0:01:01.1]} 36... Nxh5 {[%clk 0:01:25]} 37. Ke3 {[%clk
0:00:58.2]} 37... Nf6 {[%clk 0:01:24.7]} 38. Rh2 {[%clk 0:00:58.8]} 38... Rg6
{[%clk 0:01:19.2]} 39. Rh4 {[%clk 0:00:49.8]} 39... Rc8 {[%clk 0:01:17.9]} 40.
g5 {[%clk 0:00:28.9]} 40... hxg5 {[%clk 0:01:17.1]} 41. Rxg5 {[%clk 0:00:29.1]}
41... Rxg5 {[%clk 0:01:16.9]} 42. fxg5 {[%clk 0:00:30]} 42... Nd7 {[%clk
0:01:16.9]} 43. Rh7 {[%clk 0:00:29.2]} 43... Ne5 {[%clk 0:01:16.4]} 44. Bh5
{[%clk 0:00:28.1]} 44... Rg8 {[%clk 0:01:14.7]} 45. Kf4 {[%clk 0:00:28.6]} 45...
Kf8 {[%clk 0:01:07.6]} 46. Be2 {[%clk 0:00:20.8]} 46... Ng6+ {[%clk 0:01:04.3]}
47. Ke4 {[%clk 0:00:20.5]} 47... Rh8 {[%clk 0:01:01.8]} 48. Rxh8+ {[%clk
0:00:19.3]} 48... Nxh8 {[%clk 0:01:02.7]} 49. a3 {[%clk 0:00:19.3]} 49... Ke7
{[%clk 0:01:01.7]} 50. b4 {[%clk 0:00:19.7]} 50... axb4 {[%clk 0:01:02.6]} 51.
axb4 {[%clk 0:00:20.3]} 51... Ng6 {[%clk 0:01:02.8]} 52. Kd4 {[%clk 0:00:20]}
52... Ne5 {[%clk 0:01:00.8]} 53. c5 {[%clk 0:00:19.9]} 53... bxc5+ {[%clk
0:00:58]} 54. bxc5 {[%clk 0:00:20.8]} 54... Nc6+ {[%clk 0:00:58.3]} 55. Kc3
{[%clk 0:00:17.4]} 55... dxc5 {[%clk 0:00:57.5]} 56. Bf3 {[%clk 0:00:13.3]}
56... Ne5 {[%clk 0:00:57.3]} 57. Be4 {[%clk 0:00:13.9]} 57... Kd6 {[%clk
0:00:57.1]} 58. Bg2 {[%clk 0:00:13.1]} 58... Ng6 {[%clk 0:00:56.7]} 59. Bf3
{[%clk 0:00:11]} 59... Ke5 {[%clk 0:00:55.7]} 60. Bc6 {[%clk 0:00:09.6]} 60...
Kf4 {[%clk 0:00:54.6]} 61. Be8 {[%clk 0:00:10.2]} 61... Ne5 {[%clk 0:00:54.8]}
62. Bxf7 {[%clk 0:00:06.7]} 62... Nxf7 {[%clk 0:00:53.7]} 63. g6 {[%clk
0:00:07.6]} 63... Nh6 {[%clk 0:00:54]} 64. g7 {[%clk 0:00:08.5]} 64... Ke5
{[%clk 0:00:52.6]} 65. Kc4 {[%clk 0:00:09.4]} 65... Kd6 {[%clk 0:00:52.6]} 66.
Kb5 {[%clk 0:00:08.6]} 66... Ng8 {[%clk 0:00:52.2]} 67. Kc4 {[%clk 0:00:09.5]}
67... e5 {[%clk 0:00:52.6]} 68. Kd3 {[%clk 0:00:08.2]} 68... Kd5 {[%clk
0:00:53.5]} 69. Kc3 {[%clk 0:00:08.5]} 69... c4 {[%clk 0:00:54.4]} 70. Kd2
{[%clk 0:00:08.6]} 70... Kd4 {[%clk 0:00:55.3]} 71. Kc2 {[%clk 0:00:08.4]} 71...
c3 {[%clk 0:00:56.2]} 72. Kd1 {[%clk 0:00:08.2]} 72... Kd3 {[%clk 0:00:57.1]}
73. Kc1 {[%clk 0:00:08.2]} 73... c2 {[%clk 0:00:57.2]} 74. Kb2 {[%clk
0:00:08.2]} 74... Kd2 {[%clk 0:00:57.8]} 0-1

[Event "*** SCC Grand Prix: Titled Tuesday Blitz"]
[Site "Chess.com"]
[Date "2020.06.02"]
[Round "6"]
[White "Charlottemillard17"]
[Black "Tenamu"]
[Result "1-0"]
[WhiteElo "1510"]
[BlackElo "2342"]
[TimeControl "180+1"]
[EndTime "11:09:47 PDT"]
[Termination "Charlottemillard17 won on time"]

1. e4 {[%clk 0:03:00.9]} 1... e6 {[%clk 0:02:58.2]} 2. d4 {[%clk 0:02:59.9]}
2... d5 {[%clk 0:02:58.8]} 3. Nd2 {[%clk 0:03:00.3]} 3... Nf6 {[%clk 0:02:58.1]}
4. Bd3 {[%clk 0:02:58.8]} 4... c5 {[%clk 0:02:55.9]} 5. c3 {[%clk 0:02:58.1]}
5... Nc6 {[%clk 0:02:54.7]} 6. e5 {[%clk 0:02:47.2]} 6... Nd7 {[%clk 0:02:54.1]}
7. Ngf3 {[%clk 0:02:44.3]} 7... cxd4 {[%clk 0:02:45.8]} 8. cxd4 {[%clk
0:02:39.4]} 8... Qb6 {[%clk 0:02:45.7]} 9. Nb3 {[%clk 0:02:33.4]} 9... Bb4+
{[%clk 0:02:45.4]} 10. Bd2 {[%clk 0:02:27.4]} 10... f6 {[%clk 0:02:45.1]} 11.
exf6 {[%clk 0:02:15.7]} 11... Nxf6 {[%clk 0:02:44.9]} 12. O-O {[%clk 0:02:05.9]}
12... O-O {[%clk 0:02:44]} 13. Bg5 {[%clk 0:01:56.5]} 13... Bd7 {[%clk
0:02:41.8]} 14. Ne5 {[%clk 0:01:31.4]} 14... Be8 {[%clk 0:02:36]} 15. Nxc6
{[%clk 0:01:28.2]} 15... Qxc6 {[%clk 0:02:26.7]} 16. Rc1 {[%clk 0:01:24.9]}
16... Qd6 {[%clk 0:02:23.6]} 17. a3 {[%clk 0:01:18.6]} 17... Bh5 {[%clk
0:02:12.3]} 18. Be2 {[%clk 0:01:03.8]} 18... Bxe2 {[%clk 0:01:57.1]} 19. Qxe2
{[%clk 0:01:03.1]} 19... Ne4 {[%clk 0:01:56.8]} 20. Bh4 {[%clk 0:00:50.6]} 20...
Bxa3 {[%clk 0:01:22.7]} 21. bxa3 {[%clk 0:00:50]} 21... Qxa3 {[%clk 0:01:22.5]}
22. Nc5 {[%clk 0:00:47.5]} 22... Rac8 {[%clk 0:00:51.4]} 23. Ra1 {[%clk
0:00:38.1]} 23... Qc3 {[%clk 0:00:47.8]} 24. Nxe4 {[%clk 0:00:37.4]} 24... dxe4
{[%clk 0:00:44.6]} 25. Qxe4 {[%clk 0:00:37.2]} 25... Qc4 {[%clk 0:00:34.3]} 26.
Qxb7 {[%clk 0:00:35.3]} 26... Qxd4 {[%clk 0:00:32.3]} 27. Be7 {[%clk 0:00:33.8]}
27... Rfe8 {[%clk 0:00:19.1]} 28. Rxa7 {[%clk 0:00:29.6]} 28... Rb8 {[%clk
0:00:15.7]} 29. Qc7 {[%clk 0:00:28.6]} 29... Rbc8 {[%clk 0:00:13.9]} 30. Qb7
{[%clk 0:00:27.9]} 30... Rb8 {[%clk 0:00:14.1]} 31. Qd7 {[%clk 0:00:28.2]} 31...
Qg4 {[%clk 0:00:11.5]} 32. Bd6 {[%clk 0:00:26.4]} 32... Rbd8 {[%clk 0:00:10.7]}
33. Qc7 {[%clk 0:00:25.9]} 33... Rc8 {[%clk 0:00:10.4]} 34. Qb7 {[%clk
0:00:25.6]} 34... Qd4 {[%clk 0:00:08.5]} 35. h3 {[%clk 0:00:17]} 35... Red8
{[%clk 0:00:06.6]} 36. Be7 {[%clk 0:00:16]} 36... Re8 {[%clk 0:00:06.5]} 37. Bd6
{[%clk 0:00:14.6]} 37... Red8 {[%clk 0:00:06.6]} 38. Be7 {[%clk 0:00:13.9]}
38... Re8 {[%clk 0:00:06.8]} 39. Bg5 {[%clk 0:00:13.8]} 39... Qe5 {[%clk
0:00:06.2]} 40. Bh6 {[%clk 0:00:13]} 40... Rb8 {[%clk 0:00:02.5]} 41. Qxg7+
{[%clk 0:00:11.7]} 41... Qxg7 {[%clk 0:00:02.5]} 42. Rxg7+ {[%clk 0:00:12.3]}
42... Kh8 {[%clk 0:00:02.5]} 43. Rd7 {[%clk 0:00:12.2]} 1-0

[Event "*** SCC Grand Prix: Titled Tuesday Blitz"]
[Site "Chess.com"]
[Date "2020.06.02"]
[Round "6"]
[White "chito89"]
[Black "wonderfultime"]
[Result "0-1"]
[WhiteElo "2815"]
[BlackElo "2996"]
[TimeControl "180+1"]
[EndTime "11:09:49 PDT"]
[Termination "wonderfultime won on time"]

1. c4 {[%clk 0:02:51.7]} 1... c6 {[%clk 0:03:00.1]} 2. Nf3 {[%clk 0:02:49.1]}
2... d5 {[%clk 0:03:00.3]} 3. e3 {[%clk 0:02:47.4]} 3... Nf6 {[%clk 0:03:00.8]}
4. Nc3 {[%clk 0:02:46.9]} 4... a6 {[%clk 0:03:01]} 5. b3 {[%clk 0:02:45.8]} 5...
Bg4 {[%clk 0:03:00.9]} 6. h3 {[%clk 0:02:40.1]} 6... Bh5 {[%clk 0:03:00.9]} 7.
Bb2 {[%clk 0:02:38.2]} 7... e6 {[%clk 0:03:00.8]} 8. g4 {[%clk 0:02:11.3]} 8...
Bg6 {[%clk 0:03:00.3]} 9. Ne5 {[%clk 0:02:11]} 9... Bd6 {[%clk 0:02:55.3]} 10.
Nxg6 {[%clk 0:02:07.8]} 10... hxg6 {[%clk 0:02:54.6]} 11. d4 {[%clk 0:02:04.7]}
11... Nbd7 {[%clk 0:02:35.3]} 12. Qf3 {[%clk 0:01:58.3]} 12... Qa5 {[%clk
0:02:23.8]} 13. a3 {[%clk 0:01:29.7]} 13... g5 {[%clk 0:01:55.2]} 14. b4 {[%clk
0:01:17.4]} 14... Qd8 {[%clk 0:01:54.9]} 15. Rc1 {[%clk 0:01:12.2]} 15... Nf8
{[%clk 0:01:44.2]} 16. Bd3 {[%clk 0:01:11.3]} 16... dxc4 {[%clk 0:01:44]} 17.
Bxc4 {[%clk 0:01:11]} 17... Ng6 {[%clk 0:01:44.5]} 18. Qe2 {[%clk 0:00:53.1]}
18... Qe7 {[%clk 0:01:40.8]} 19. Bd3 {[%clk 0:00:52.2]} 19... Nh4 {[%clk
0:01:33.1]} 20. Ne4 {[%clk 0:00:52.6]} 20... Nxe4 {[%clk 0:01:31.9]} 21. Bxe4
{[%clk 0:00:53.5]} 21... f5 {[%clk 0:01:23.5]} 22. Bb1 {[%clk 0:00:48.9]} 22...
O-O {[%clk 0:01:18.4]} 23. gxf5 {[%clk 0:00:41.7]} 23... Rxf5 {[%clk 0:01:15.6]}
24. Bxf5 {[%clk 0:00:39.7]} 24... exf5 {[%clk 0:01:16.5]} 25. d5 {[%clk
0:00:32.4]} 25... Qe4 {[%clk 0:01:10.3]} 26. Kd2 {[%clk 0:00:16.8]} 26... Nf3+
{[%clk 0:01:04.1]} 27. Kc3 {[%clk 0:00:16.9]} 27... Qxd5 {[%clk 0:00:56.9]} 28.
Rhd1 {[%clk 0:00:13.6]} 28... Be5+ {[%clk 0:00:56.1]} 29. Kc2 {[%clk 0:00:13.9]}
29... Qa2 {[%clk 0:00:41.7]} 30. Rb1 {[%clk 0:00:14.3]} 30... g4 {[%clk
0:00:41.8]} 31. hxg4 {[%clk 0:00:10.9]} 31... fxg4 {[%clk 0:00:42.7]} 32. Qd3
{[%clk 0:00:11.2]} 32... Rf8 {[%clk 0:00:20]} 33. Qb3+ {[%clk 0:00:11.3]} 33...
Qxb3+ {[%clk 0:00:20.4]} 34. Kxb3 {[%clk 0:00:12.2]} 34... Rf7 {[%clk
0:00:20.8]} 35. Rd8+ {[%clk 0:00:10]} 35... Kh7 {[%clk 0:00:20.8]} 36. Rbd1
{[%clk 0:00:06.9]} 36... Bxb2 {[%clk 0:00:18]} 37. Kxb2 {[%clk 0:00:07.8]} 37...
Ne5 {[%clk 0:00:18.5]} 38. Kc3 {[%clk 0:00:03.3]} 38... Rxf2 {[%clk 0:00:18.4]}
39. R8d4 {[%clk 0:00:03.7]} 39... Kg6 {[%clk 0:00:15.2]} 40. Rg1 {[%clk
0:00:02.2]} 40... Kg5 {[%clk 0:00:14.6]} 41. Re4 {[%clk 0:00:01.7]} 41... Rf5
{[%clk 0:00:15]} 42. Rd4 {[%clk 0:00:01.7]} 42... Kh4 {[%clk 0:00:13.5]} 43. Rg2
{[%clk 0:00:02]} 43... Kh3 {[%clk 0:00:13.8]} 44. Rdd2 {[%clk 0:00:01.6]} 44...
g3 {[%clk 0:00:13.8]} 45. Rg1 {[%clk 0:00:01.3]} 45... Rf2 {[%clk 0:00:12.3]}
46. Rh1+ {[%clk 0:00:02.2]} 46... Kg4 {[%clk 0:00:12.6]} 47. Rd4+ {[%clk
0:00:01.5]} 47... Kf3 {[%clk 0:00:12.8]} 48. Rf4+ {[%clk 0:00:01.9]} 48... Kg2
{[%clk 0:00:13.3]} 49. Rfh4 {[%clk 0:00:02.1]} 49... Rf1 {[%clk 0:00:09.5]} 0-1

[Event "*** SCC Grand Prix: Titled Tuesday Blitz"]
[Site "Chess.com"]
[Date "2020.06.02"]
[Round "6"]
[White "Smile2005"]
[Black "annamaja"]
[Result "1-0"]
[WhiteElo "2413"]
[BlackElo "2194"]
[TimeControl "180+1"]
[EndTime "11:09:50 PDT"]
[Termination "Smile2005 won by resignation"]

1. Nf3 {[%clk 0:02:55.1]} 1... Nf6 {[%clk 0:03:00]} 2. g3 {[%clk 0:02:55.6]}
2... b6 {[%clk 0:02:58.3]} 3. Bg2 {[%clk 0:02:56.2]} 3... Bb7 {[%clk 0:02:59]}
4. O-O {[%clk 0:02:57]} 4... e6 {[%clk 0:02:59.4]} 5. d3 {[%clk 0:02:57.7]} 5...
Be7 {[%clk 0:02:59.8]} 6. Nbd2 {[%clk 0:02:58.5]} 6... O-O {[%clk 0:03:00.4]} 7.
e4 {[%clk 0:02:59.4]} 7... c5 {[%clk 0:02:59.8]} 8. c3 {[%clk 0:02:58.8]} 8...
Nc6 {[%clk 0:02:58.9]} 9. Re1 {[%clk 0:02:58.1]} 9... d5 {[%clk 0:02:59]} 10. e5
{[%clk 0:02:58.5]} 10... Nd7 {[%clk 0:02:59.3]} 11. Nf1 {[%clk 0:02:57.1]} 11...
h6 {[%clk 0:02:39.5]} 12. h4 {[%clk 0:02:56.3]} 12... b5 {[%clk 0:02:31.8]} 13.
N1h2 {[%clk 0:02:55.4]} 13... b4 {[%clk 0:02:31]} 14. c4 {[%clk 0:02:54.7]}
14... dxc4 {[%clk 0:02:24.5]} 15. dxc4 {[%clk 0:02:55.2]} 15... Nb6 {[%clk
0:01:49.3]} 16. Qe2 {[%clk 0:02:51.2]} 16... Qc7 {[%clk 0:01:35.9]} 17. Bf4
{[%clk 0:02:50]} 17... Rad8 {[%clk 0:01:29]} 18. b3 {[%clk 0:02:48.8]} 18... Nd4
{[%clk 0:01:26.4]} 19. Nxd4 {[%clk 0:02:48.6]} 19... Rxd4 {[%clk 0:01:27.3]} 20.
Nf3 {[%clk 0:02:46.4]} 20... Re4 {[%clk 0:01:19]} 21. Qc2 {[%clk 0:02:39]} 21...
Rxe1+ {[%clk 0:01:16.4]} 22. Rxe1 {[%clk 0:02:39]} 22... Rd8 {[%clk 0:01:15.9]}
23. Rd1 {[%clk 0:02:08.7]} 23... Qb8 {[%clk 0:00:50.5]} 24. Rxd8+ {[%clk
0:02:01.4]} 24... Bxd8 {[%clk 0:00:49.9]} 25. Qd2 {[%clk 0:02:00.1]} 25... Bc7
{[%clk 0:00:42.2]} 26. Qe3 {[%clk 0:01:49.5]} 26... Nd7 {[%clk 0:00:38.5]} 27.
Qd3 {[%clk 0:01:14.9]} 27... Bxf3 {[%clk 0:00:30.6]} 28. Qxd7 {[%clk 0:01:10.3]}
28... Bxg2 {[%clk 0:00:29.9]} 29. Kxg2 {[%clk 0:01:10.3]} 29... Bxe5 {[%clk
0:00:27.7]} 30. Bxe5 {[%clk 0:00:57.6]} 30... Qxe5 {[%clk 0:00:28.6]} 31. Qe8+
{[%clk 0:00:56.5]} 31... Kh7 {[%clk 0:00:27.8]} 32. Qxf7 {[%clk 0:00:57]} 32...
a5 {[%clk 0:00:23.3]} 33. Qf3 {[%clk 0:00:54.7]} 33... Qd4 {[%clk 0:00:17.3]}
34. Qe2 {[%clk 0:00:52]} 34... e5 {[%clk 0:00:15.6]} 35. Qf3 {[%clk 0:00:49.5]}
35... e4 {[%clk 0:00:08.8]} 36. Qf5+ {[%clk 0:00:44.2]} 36... Kg8 {[%clk
0:00:09.2]} 37. Qe6+ {[%clk 0:00:40.6]} 37... Kf8 {[%clk 0:00:09]} 38. h5 {[%clk
0:00:38]} 38... a4 {[%clk 0:00:06.3]} 39. bxa4 {[%clk 0:00:35.6]} 39... Qd3
{[%clk 0:00:03.1]} 40. Qc8+ {[%clk 0:00:30.6]} 40... Kf7 {[%clk 0:00:02.8]} 41.
Qxc5 {[%clk 0:00:30.7]} 41... Qf3+ {[%clk 0:00:02.9]} 42. Kh2 {[%clk 0:00:22.3]}
42... Qd1 {[%clk 0:00:01.6]} 43. Qd5+ {[%clk 0:00:20.4]} 43... Qxd5 {[%clk
0:00:01.3]} 44. cxd5 {[%clk 0:00:20.3]} 44... Ke7 {[%clk 0:00:01.8]} 45. a5
{[%clk 0:00:20.7]} 45... Kd6 {[%clk 0:00:02.2]} 46. a6 {[%clk 0:00:21]} 1-0

[Event "*** SCC Grand Prix: Titled Tuesday Blitz"]
[Site "Chess.com"]
[Date "2020.06.02"]
[Round "6"]
[White "robertofabregas"]
[Black "DDTerziev04"]
[Result "1-0"]
[WhiteElo "2064"]
[BlackElo "2228"]
[TimeControl "180+1"]
[EndTime "11:09:51 PDT"]
[Termination "robertofabregas won on time"]

1. d4 {[%clk 0:03:00.9]} 1... d5 {[%clk 0:02:59.5]} 2. Bf4 {[%clk 0:03:01.5]}
2... Nf6 {[%clk 0:02:57.1]} 3. e3 {[%clk 0:03:01.6]} 3... c5 {[%clk 0:02:56.4]}
4. Nf3 {[%clk 0:02:56.4]} 4... Nc6 {[%clk 0:02:55.1]} 5. c3 {[%clk 0:02:52.7]}
5... Qb6 {[%clk 0:02:53.8]} 6. Qb3 {[%clk 0:02:38.9]} 6... c4 {[%clk 0:02:52.9]}
7. Qc2 {[%clk 0:02:38.7]} 7... Bf5 {[%clk 0:02:51.8]} 8. Qc1 {[%clk 0:02:34.9]}
8... e6 {[%clk 0:02:49.7]} 9. Nbd2 {[%clk 0:02:35.1]} 9... h6 {[%clk 0:02:44.2]}
10. h3 {[%clk 0:02:34.8]} 10... Be7 {[%clk 0:02:43.2]} 11. Be2 {[%clk
0:02:34.7]} 11... O-O {[%clk 0:02:40.3]} 12. O-O {[%clk 0:02:34.2]} 12... Rfc8
{[%clk 0:02:35]} 13. Ne5 {[%clk 0:02:34.2]} 13... Qd8 {[%clk 0:02:27.5]} 14. f3
{[%clk 0:02:21.1]} 14... b5 {[%clk 0:02:18.1]} 15. a3 {[%clk 0:02:19.2]} 15...
a5 {[%clk 0:02:04.8]} 16. Nxc6 {[%clk 0:02:14.8]} 16... Rxc6 {[%clk 0:02:05.7]}
17. e4 {[%clk 0:02:15.1]} 17... dxe4 {[%clk 0:01:59]} 18. fxe4 {[%clk
0:02:14.9]} 18... Bxe4 {[%clk 0:01:26.5]} 19. Nxe4 {[%clk 0:02:09]} 19... Nxe4
{[%clk 0:01:27.4]} 20. Bf3 {[%clk 0:02:09.2]} 20... f5 {[%clk 0:01:27.8]} 21.
Qe3 {[%clk 0:01:34.9]} 21... Qd5 {[%clk 0:00:46.8]} 22. Rae1 {[%clk 0:01:29.2]}
22... b4 {[%clk 0:00:42.7]} 23. axb4 {[%clk 0:01:19.2]} 23... axb4 {[%clk
0:00:40.9]} 24. Bxe4 {[%clk 0:01:17.8]} 24... fxe4 {[%clk 0:00:38.3]} 25. Qxe4
{[%clk 0:01:05.2]} 25... Qxe4 {[%clk 0:00:36.2]} 26. Rxe4 {[%clk 0:01:06.1]}
26... Ra2 {[%clk 0:00:29.7]} 27. Bc1 {[%clk 0:00:56.3]} 27... Ra1 {[%clk
0:00:17.9]} 28. Rg4 {[%clk 0:00:43.6]} 28... Kh8 {[%clk 0:00:12.3]} 29. Rg6
{[%clk 0:00:23]} 29... Rb6 {[%clk 0:00:10.3]} 30. Kh2 {[%clk 0:00:15.9]} 30...
bxc3 {[%clk 0:00:07.9]} 31. bxc3 {[%clk 0:00:15.7]} 31... Rbb1 {[%clk
0:00:06.6]} 32. Rf7 {[%clk 0:00:11.3]} 32... Bd6+ {[%clk 0:00:06.2]} 33. Bf4
{[%clk 0:00:11.6]} 33... Bxf4+ {[%clk 0:00:03.5]} 34. Rxf4 {[%clk 0:00:11.9]}
34... Rc1 {[%clk 0:00:03.2]} 35. Rf7 {[%clk 0:00:06.1]} 35... Rxc3 {[%clk
0:00:02.8]} 36. Rgxg7 {[%clk 0:00:06.3]} 36... Rc2 {[%clk 0:00:02.5]} 37. Rh7+
{[%clk 0:00:06.7]} 37... Kg8 {[%clk 0:00:02.2]} 38. Rhg7+ {[%clk 0:00:07.3]}
38... Kh8 {[%clk 0:00:02.3]} 39. Rh7+ {[%clk 0:00:06.7]} 39... Kg8 {[%clk
0:00:02.7]} 40. Rfg7+ {[%clk 0:00:06.8]} 40... Kf8 {[%clk 0:00:02.6]} 41. Rb7
{[%clk 0:00:07.3]} 41... Kg8 {[%clk 0:00:02.4]} 42. Rhe7 {[%clk 0:00:05.4]}
42... Rf1 {[%clk 0:00:01.4]} 43. Rb8+ {[%clk 0:00:03]} 43... Rf8 {[%clk
0:00:01]} 44. Rxf8+ {[%clk 0:00:03]} 44... Kxf8 {[%clk 0:00:01.9]} 45. Rxe6
{[%clk 0:00:03.9]} 45... Kg7 {[%clk 0:00:01.3]} 46. Rc6 {[%clk 0:00:04.8]} 46...
c3 {[%clk 0:00:01.3]} 47. d5 {[%clk 0:00:05.1]} 1-0

[Event "*** SCC Grand Prix: Titled Tuesday Blitz"]
[Site "Chess.com"]
[Date "2020.06.02"]
[Round "6"]
[White "serhanberat_ozdemir"]
[Black "Ginzburg_Yakov"]
[Result "1/2-1/2"]
[WhiteElo "2510"]
[BlackElo "2337"]
[TimeControl "180+1"]
[EndTime "11:09:52 PDT"]
[Termination "Game drawn by stalemate"]

1. e4 {[%clk 0:03:00.9]} 1... c5 {[%clk 0:02:58.5]} 2. Nf3 {[%clk 0:03:00.5]}
2... Nc6 {[%clk 0:02:58.7]} 3. Bb5 {[%clk 0:03:00.1]} 3... g6 {[%clk 0:02:57.1]}
4. Bxc6 {[%clk 0:02:59.2]} 4... dxc6 {[%clk 0:02:57.3]} 5. d3 {[%clk 0:02:57.8]}
5... Bg7 {[%clk 0:02:57.1]} 6. h3 {[%clk 0:02:58.2]} 6... e5 {[%clk 0:02:57]} 7.
O-O {[%clk 0:02:55.6]} 7... Qc7 {[%clk 0:02:56.9]} 8. a3 {[%clk 0:02:54]} 8...
Nf6 {[%clk 0:02:56.8]} 9. b4 {[%clk 0:02:51.2]} 9... cxb4 {[%clk 0:02:56.8]} 10.
axb4 {[%clk 0:02:52.1]} 10... O-O {[%clk 0:02:56.1]} 11. Nbd2 {[%clk 0:02:52]}
11... Re8 {[%clk 0:02:51.7]} 12. Bb2 {[%clk 0:02:51.9]} 12... Nd7 {[%clk
0:02:51.4]} 13. Nc4 {[%clk 0:02:49.8]} 13... b5 {[%clk 0:02:36.1]} 14. Na5
{[%clk 0:02:41.1]} 14... Nf8 {[%clk 0:02:31.7]} 15. Nb3 {[%clk 0:02:31.7]} 15...
Ne6 {[%clk 0:02:30.7]} 16. Ra5 {[%clk 0:02:20.2]} 16... Nf4 {[%clk 0:02:26.1]}
17. Nc5 {[%clk 0:02:09]} 17... Bf8 {[%clk 0:02:15.7]} 18. Qa1 {[%clk 0:02:04.2]}
18... Bxh3 {[%clk 0:02:06.7]} 19. gxh3 {[%clk 0:01:38.9]} 19... Qc8 {[%clk
0:01:58.1]} 20. Bxe5 {[%clk 0:01:23.9]} 20... Bg7 {[%clk 0:01:58.2]} 21. Bxf4
{[%clk 0:00:28.7]} 21... Bxa1 {[%clk 0:01:57.4]} 22. Rfxa1 {[%clk 0:00:28.7]}
22... Qxh3 {[%clk 0:01:55.6]} 23. Bg3 {[%clk 0:00:26.9]} 23... Re7 {[%clk
0:01:54.1]} 24. Ra6 {[%clk 0:00:25.5]} 24... f5 {[%clk 0:01:46.3]} 25. Nd4
{[%clk 0:00:20.7]} 25... Qg4 {[%clk 0:01:34.1]} 26. Nxc6 {[%clk 0:00:18.9]}
26... Ree8 {[%clk 0:01:28.4]} 27. Nd7 {[%clk 0:00:17.6]} 27... Re6 {[%clk
0:01:07.3]} 28. Ne7+ {[%clk 0:00:13.6]} 28... Kf7 {[%clk 0:01:06]} 29. Rxe6
{[%clk 0:00:14.1]} 29... Kxe6 {[%clk 0:01:06.1]} 30. Nd5 {[%clk 0:00:10.4]}
30... fxe4 {[%clk 0:01:00.8]} 31. Ra6+ {[%clk 0:00:08.8]} 31... Kxd5 {[%clk
0:00:53.8]} 32. Nf6+ {[%clk 0:00:08.5]} 32... Kd4 {[%clk 0:00:54.1]} 33. Nxg4
{[%clk 0:00:09.4]} 33... exd3 {[%clk 0:00:53.9]} 34. cxd3 {[%clk 0:00:10.3]}
34... Kxd3 {[%clk 0:00:54.2]} 35. Ne5+ {[%clk 0:00:10.4]} 35... Kc3 {[%clk
0:00:54.1]} 36. Nc6 {[%clk 0:00:10.8]} 36... g5 {[%clk 0:00:47.8]} 37. Rxa7
{[%clk 0:00:11]} 37... Rxa7 {[%clk 0:00:47.7]} 38. Nxa7 {[%clk 0:00:11.9]} 38...
Kxb4 {[%clk 0:00:48.6]} 39. Bd6+ {[%clk 0:00:09.3]} 39... Kc4 {[%clk 0:00:48.3]}
40. Be7 {[%clk 0:00:09.4]} 40... g4 {[%clk 0:00:44.7]} 41. Nc6 {[%clk
0:00:09.3]} 41... Kd5 {[%clk 0:00:44.7]} 42. Nb4+ {[%clk 0:00:08.4]} 42... Ke4
{[%clk 0:00:44.8]} 43. Kg2 {[%clk 0:00:08.3]} 43... Kf4 {[%clk 0:00:44.1]} 44.
Bd6+ {[%clk 0:00:08.3]} 44... Kg5 {[%clk 0:00:44.2]} 45. Kg3 {[%clk 0:00:08.9]}
45... h5 {[%clk 0:00:44.4]} 46. Be7+ {[%clk 0:00:09.4]} 46... Kf5 {[%clk
0:00:44.7]} 47. Nd3 {[%clk 0:00:08.8]} 47... Ke4 {[%clk 0:00:44]} 48. Nf4 {[%clk
0:00:06.3]} 48... h4+ {[%clk 0:00:33.9]} 49. Kxg4 {[%clk 0:00:07.2]} 49... Ke5
{[%clk 0:00:30.1]} 50. Bxh4 {[%clk 0:00:04.6]} 50... b4 {[%clk 0:00:29.7]} 51.
Be7 {[%clk 0:00:05.2]} 51... b3 {[%clk 0:00:29.6]} 52. Ba3 {[%clk 0:00:06.1]}
52... Ke4 {[%clk 0:00:29.5]} 53. Bb2 {[%clk 0:00:07]} 1/2-1/2